Workbook

Sheet T-12
A2: INCOME | B2: JUNE, 2025 | C2: JULY, 2025 | D2: AUG, 2025 | E2: SEPT, 2025 | F2: OCT, 2025 | G2: NOV, 2025 | H2: DEC, 2025 | I2: JAN, 2026 | J2: FEB, 2026 | K2: MARCH, 2026 | L2: APRIL, 2026 | M2: MAY, 2026 | N2: TOTAL
A3: Rental Income | B3: 8645 | C3: 8970 | D3: 9350 | E3: 9410 | F3: 9490 | G3: 9020 | H3: 9560 | I3: 9490 | J3: 9680 | K3: 9795 | L3: 10050 | M3: 10050 | N3: =SUM(B3:M3) -> 113510
A4: Late Fees | B4: 320 | C4: 410 | D4: 220 | E4: 195 | F4: 310 | G4: 365 | H4: 180 | I4: 280 | J4: 245 | K4: 325 | L4: 265 | M4: 120 | N4: =SUM(B4:M4) -> 3235
A5: Other Income | B5: 0 | C5: 45 | D5: 0 | E5: 165 | F5: 0 | G5: 0 | H5: 45 | I5: 85 | J5: 0 | K5: 65 | L5: 0 | M5: 75 | N5: =SUM(B5:M5) -> 480
A6: Total Income | B6: =SUM(B3:B5) -> 8965 | C6: =SUM(C3:C5) -> 9425 | D6: 9570 | E6: 9770 | F6: 9800 | G6: 9385 | H6: 9785 | I6: 9855 | J6: 9925 | K6: 10185 | L6: 10315 | M6: 10245 | N6: =SUM(N3:N5) -> 117225
A9: EXPENSES | B9: JUNE, 2025 | C9: JULY, 2025 | D9: AUG, 2025 | E9: SEPT, 2025 | F9: OCT, 2025 | G9: NOV, 2025 | H9: DEC, 2025 | I9: JAN, 2026 | J9: FEB, 2026 | K9: MARCH, 2026 | L9: APRIL, 2026 | M9: MAY, 2026 | N9: TOTAL
A10: Property taxes | B10: 788 | C10: 788 | D10: 788 | E10: 788 | F10: 788 | G10: 788 | H10: 788 | I10: 788 | J10: 788 | K10: 788 | L10: 788 | M10: 788 | N10: =SUM(B10:M10) -> 9456
A11: Insurance | B11: 780 | C11: 830 | D11: 850 | E11: 916 | F11: 916 | G11: 916 | H11: 916 | I11: 916 | J11: 916 | K11: 916 | L11: 916 | M11: 916 | N11: =SUM(B11:M11) -> 10704
A12: Water & Sewer (Undine) | B12: 479 | C12: 482 | D12: 493 | E12: 474 | F12: 480 | G12: 489 | H12: 485 | I12: 489 | J12: 530 | K12: 522.75 | L12: 529.69 | M12: 536.64 | N12: =SUM(B12:M12) -> 5990.08
A13: Repairs and Maintenance | B13: 230 | C13: 145 | D13: 210 | E13: 125 | F13: 128 | G13: 120 | H13: 65 | I13: 530 | J13: 295 | K13: 110 | L13: 0 | M13: 205 | N13: 2163
A14: Landscaping & Pest Control | B14: 285 | C14: 285 | D14: 285 | E14: 285 | F14: 285 | G14: 285 | H14: 285 | I14: 285 | J14: 285 | K14: 285 | L14: 285 | M14: 285 | N14: 3420
A15: Sewer Maintenance | B15: 153 | C15: 153 | D15: 153 | E15: 153 | F15: 153 | G15: 153 | H15: 153 | I15: 153 | J15: 153 | K15: 153 | L15: 153 | M15: 153 | N15: =SUM(B15:M15) -> 1836
A16: Trash | B16: 265 | C16: 198 | D16: 548 | E16: 464 | F16: 419 | G16: 306 | H16: 312 | I16: 426 | J16: 308 | K16: 345 | L16: 362 | M16: 399 | N16: 4352
A17: Mgmt Fees (5% Projection) | B17: =0.05*B6 -> 448.25 | C17: =0.05*C6 -> 471.25 | D17: 478.5 | E17: 488.5 | F17: 490 | G17: 469.25 | H17: 489.25 | I17: 492.75 | J17: 496.25 | K17: 509.25 | L17: 515.75 | M17: 512.25 | N17: 5861.25
N18: 0
A19: Operating Expenses | B19: =SUM(B10:B17) -> 3428.25 | C19: =SUM(C10:C17) -> 3352.25 | D19: 3805.5 | E19: 3693.5 | F19: 3659 | G19: 3526.25 | H19: 3493.25 | I19: 4079.75 | J19: 3771.25 | K19: 3629 | L19: 3549.44 | M19: 3794.89 | N19: 43782.33
A21: NOI | B21: =B6-B19 -> 5536.75 | C21: =C6-C19 -> 6072.75 | D21: 5764.5 | E21: 6076.5 | F21: 6141 | G21: 5858.75 | H21: 6291.75 | I21: 5775.25 | J21: 6153.75 | K21: 6556 | L21: 6765.56 | M21: 6450.11 | N21: =SUM(B21:M21) -> 73442.67

Sheet RR
A1: Rent Roll - Jun 2025 to May 2026 ROUNDROCK APARTMENT
A2: 8430 Round Rock Dr, Houston, TX
A3: Rent Roll
A4: Units No | B4: Unit Mix | C4: Square Foot | D4: Current Rent | E4: Security Deposit | F4: Market Rent | G4: SQFT | H4: RENT/SQFT | I4: MOVED IN | J4: LEASE END | K4: First, Last Name | L4: Occupants | M4: Total Units | N4: =COUNT(C4:C13) -> 8
A5: Unit 1 | B5: 2bed/1bath | C5: 855 | D5: 1250 | E5: 0 | F5: 1400 | G5: 850 | H5: =D5/G5 -> 1.470588235 | I5: 2026-03-09 | J5: 2027-03-31 | K5: Daphne Hicks | L5: 2 | M5: Vacant | N5: 0
A6: Unit 2 | B6: 2bed/1bath | C6: 855 | D6: 1200 | E6: 1000 | F6: 1400 | G6: 850 | H6: =D6/G6 -> 1.411764706 | I6: 2026-02-01 | J6: 2027-02-28 | K6: Terri Cockram | L6: 1
A7: Unit 3 | B7: 2bed/1bath | C7: 855 | D7: 1200 | E7: 800 | F7: 1400 | G7: 850 | H7: 1.411764706 | I7: 2022-03-01 | J7: 2027-04-30 | K7: Sandra and Jason Chapman | L7: 3 | M7: Occupancy | N7: =(N4-N5)/N4 -> 1
A8: Unit 4 | B8: 2bed/1bath | C8: 855 | D8: 1200 | E8: 800 | F8: 1400 | G8: 850 | H8: 1.411764706 | I8: 2024-03-01 | J8: 2027-03-31 | K8: Alisa Solis | L8: 3 | M8: Vacancy | N8: =N5/N4 -> 0
A9: Unit 5 | B9: 2bed/1bath | C9: 855 | D9: 1305 | E9: 0 | F9: 1400 | G9: 850 | H9: 1.535294118 | I9: 2026-12-01 | J9: 2027-11-28 | K9: Monica | L9: 2
A10: Unit 6 | B10: 2bed/1bath | C10: 855 | D10: 1400 | E10: 800 | F10: 1400 | G10: 850 | H10: 1.647058824 | I10: 2024-03-01 | J10: 2027-03-31 | K10: Jose Padilla Gonzalez | L10: 1 | M10: RR Total | N10: =D13 -> 10005
A11: Unit 7 | B11: 2bed/1bath | C11: 855 | D11: 1200 | E11: 700 | F11: 1400 | G11: 850 | H11: 1.411764706 | I11: 2025-12-17 | J11: 2027-01-31 | K11: Jenny Turner | L11: 2
A12: Unit 8 | B12: 2bed/1bath | C12: 855 | D12: 1250 | E12: 1000 | F12: 1400 | G12: 850 | H12: 1.470588235 | I12: 2025-09-01 | J12: 2026-10-31 | K12: Dominique | L12: 1
D13: =SUM(D5:D12) -> 10005 | E13: 5100 | F13: =SUM(F5:F12) -> 11200
